[Event "*** Titled Tuesday Blitz"]
[Site "Chess.com"]
[Date "2019.07.02"]
[Round "5"]
[White "OparinGrigoriy"]
[Black "TheCount"]
[Result "1-0"]
[WhiteElo "2989"]
[BlackElo "2787"]
[TimeControl "180+2"]
[EndTime "14:06:39 PDT"]
[Termination "OparinGrigoriy won by resignation"]

1. Nf3 {[%clk 0:03:01.9]} 1... Nf6 {[%clk 0:02:51.1]} 2. g3 {[%clk 0:03:02.9]}
2... g6 {[%clk 0:02:52.2]} 3. Bg2 {[%clk 0:03:04.8]} 3... Bg7 {[%clk 0:02:52.9]}
4. c4 {[%clk 0:03:06.4]} 4... O-O {[%clk 0:02:47.3]} 5. Nc3 {[%clk 0:03:07.6]}
5... d5 {[%clk 0:02:47.1]} 6. cxd5 {[%clk 0:03:09.5]} 6... Nxd5 {[%clk
0:02:48.6]} 7. h4 {[%clk 0:03:10.1]} 7... Nxc3 {[%clk 0:02:44.9]} 8. bxc3 {[%clk
0:03:10.9]} 8... h6 {[%clk 0:02:46.2]} 9. d4 {[%clk 0:03:08.8]} 9... c5 {[%clk
0:02:45.9]} 10. O-O {[%clk 0:03:06.1]} 10... Nc6 {[%clk 0:02:30.4]} 11. e3
{[%clk 0:03:00.9]} 11... Bf5 {[%clk 0:02:09.7]} 12. Nd2 {[%clk 0:02:56.3]} 12...
cxd4 {[%clk 0:01:58.5]} 13. cxd4 {[%clk 0:02:57.4]} 13... Bd3 {[%clk 0:01:58.2]}
14. Re1 {[%clk 0:02:57]} 14... e5 {[%clk 0:01:59.7]} 15. d5 {[%clk 0:02:45.4]}
15... Nb4 {[%clk 0:01:46.6]} 16. Ba3 {[%clk 0:02:45.5]} 16... Qa5 {[%clk
0:01:02.8]} 17. Qb3 {[%clk 0:02:45.2]} 17... Nc2 {[%clk 0:00:52.2]} 18. Bxf8
{[%clk 0:02:40.8]} 18... Nxa1 {[%clk 0:00:38.9]} 19. Qxd3 {[%clk 0:02:36.7]}
19... Rxf8 {[%clk 0:00:29.1]} 20. d6 {[%clk 0:02:25]} 20... Rd8 {[%clk
0:00:22.9]} 21. Rd1 {[%clk 0:02:12.8]} 21... Qxa2 {[%clk 0:00:21.8]} 22. Be4
{[%clk 0:01:54.2]} 22... a5 {[%clk 0:00:15.1]} 23. h5 {[%clk 0:01:55.1]} 23...
gxh5 {[%clk 0:00:14.1]} 24. Nc4 {[%clk 0:01:08.4]} 24... Nb3 {[%clk 0:00:13.4]}
25. Bd5 {[%clk 0:01:06.7]} 25... Nc5 {[%clk 0:00:13.6]} 26. Qg6 {[%clk
0:01:07.1]} 26... Ne6 {[%clk 0:00:05.6]} 27. Bxe6 {[%clk 0:01:06.9]} 27... fxe6
{[%clk 0:00:07.5]} 28. Qxe6+ {[%clk 0:01:08.4]} 28... Kh8 {[%clk 0:00:09.2]} 29.
Rd2 {[%clk 0:00:42.5]} 29... Qb1+ {[%clk 0:00:08.8]} 30. Kh2 {[%clk 0:00:43.8]}
30... Qb5 {[%clk 0:00:07.6]} 31. d7 {[%clk 0:00:42.1]} 31... Qc6 {[%clk
0:00:08.9]} 32. Qxc6 {[%clk 0:00:35.7]} 32... bxc6 {[%clk 0:00:09.9]} 33. Nxa5
{[%clk 0:00:37.3]} 33... Bf6 {[%clk 0:00:07.9]} 34. Nxc6 {[%clk 0:00:38.4]} 1-0

[Event "*** Titled Tuesday Blitz"]
[Site "Chess.com"]
[Date "2019.07.02"]
[Round "5"]
[White "Alex_Molchanov"]
[Black "Doraemon7"]
[Result "1-0"]
[WhiteElo "2579"]
[BlackElo "2576"]
[TimeControl "180+2"]
[EndTime "14:06:47 PDT"]
[Termination "Alex_Molchanov won by resignation"]

1. Nf3 {[%clk 0:03:01.9]} 1... d5 {[%clk 0:03:00.5]} 2. g3 {[%clk 0:03:01.8]}
2... g6 {[%clk 0:03:02]} 3. Bg2 {[%clk 0:03:02.5]} 3... Bg7 {[%clk 0:03:03.6]}
4. O-O {[%clk 0:03:03.9]} 4... e5 {[%clk 0:03:04.8]} 5. d4 {[%clk 0:03:03.2]}
5... e4 {[%clk 0:02:51.7]} 6. Ne1 {[%clk 0:03:04.1]} 6... Ne7 {[%clk 0:02:50.2]}
7. Bg5 {[%clk 0:02:59.4]} 7... f6 {[%clk 0:02:48.8]} 8. Bc1 {[%clk 0:02:59]}
8... O-O {[%clk 0:02:46.9]} 9. f3 {[%clk 0:02:56.8]} 9... f5 {[%clk 0:02:47.6]}
10. Bg5 {[%clk 0:02:57.3]} 10... Nd7 {[%clk 0:02:41.8]} 11. e3 {[%clk
0:02:52.6]} 11... Nf6 {[%clk 0:02:42.7]} 12. Bxf6 {[%clk 0:02:52.2]} 12... Rxf6
{[%clk 0:02:41.2]} 13. f4 {[%clk 0:02:52]} 13... Rb6 {[%clk 0:02:40.7]} 14. b3
{[%clk 0:02:52]} 14... a5 {[%clk 0:02:41.6]} 15. Nd2 {[%clk 0:02:53]} 15... a4
{[%clk 0:02:42.7]} 16. c4 {[%clk 0:02:54.3]} 16... c6 {[%clk 0:02:42.8]} 17. Nc2
{[%clk 0:02:54.3]} 17... Be6 {[%clk 0:02:38.7]} 18. c5 {[%clk 0:02:55.1]} 18...
Rba6 {[%clk 0:02:39.8]} 19. b4 {[%clk 0:02:55.1]} 19... a3 {[%clk 0:02:27.9]}
20. Rb1 {[%clk 0:02:55.7]} 20... Bd7 {[%clk 0:02:25.2]} 21. Qc1 {[%clk
0:02:54.1]} 21... b5 {[%clk 0:02:22.7]} 22. Rb3 {[%clk 0:02:46.5]} 22... Qb8
{[%clk 0:02:19.7]} 23. Rf2 {[%clk 0:02:45.7]} 23... Qa7 {[%clk 0:02:19.8]} 24.
Nb1 {[%clk 0:02:47.2]} 24... Kf7 {[%clk 0:02:11.6]} 25. Rxa3 {[%clk 0:02:47.5]}
25... Ng8 {[%clk 0:02:08.7]} 26. Bf1 {[%clk 0:02:46.4]} 26... Nf6 {[%clk
0:02:09]} 27. Be2 {[%clk 0:02:47.6]} 27... h5 {[%clk 0:02:08]} 28. Bd1 {[%clk
0:02:46.6]} 28... Bf8 {[%clk 0:02:01.6]} 29. Rxa6 {[%clk 0:02:42.5]} 29... Qxa6
{[%clk 0:02:02.5]} 30. Ne1 {[%clk 0:02:44.1]} 30... h4 {[%clk 0:02:01]} 31. gxh4
{[%clk 0:02:42.6]} 31... Be7 {[%clk 0:02:01.8]} 32. Ng2 {[%clk 0:02:43.5]} 32...
Ng4 {[%clk 0:01:58.1]} 33. Bxg4 {[%clk 0:02:38.4]} 33... fxg4 {[%clk 0:02:00]}
34. Nc3 {[%clk 0:02:37.7]} 34... Qa3 {[%clk 0:01:59.4]} 35. Qxa3 {[%clk
0:02:37.2]} 35... Rxa3 {[%clk 0:02:01.3]} 36. Rc2 {[%clk 0:02:38]} 36... Kg7
{[%clk 0:01:54.6]} 37. Kf2 {[%clk 0:02:37.7]} 37... Kh6 {[%clk 0:01:55.7]} 38.
Nb1 {[%clk 0:02:32.7]} 38... Ra4 {[%clk 0:01:49.8]} 39. a3 {[%clk 0:02:33.2]}
39... Kh5 {[%clk 0:01:51.2]} 40. Kg3 {[%clk 0:02:34.2]} 40... Bf6 {[%clk
0:01:43.3]} 41. Ra2 {[%clk 0:02:34]} 41... Bd8 {[%clk 0:01:32]} 42. Nc3 {[%clk
0:02:35.2]} 42... Ra7 {[%clk 0:01:31.9]} 43. a4 {[%clk 0:02:36.4]} 43... Bc7
{[%clk 0:01:27.2]} 44. axb5 {[%clk 0:02:32]} 44... Rxa2 {[%clk 0:01:29.1]} 45.
Nxa2 {[%clk 0:02:33.3]} 45... cxb5 {[%clk 0:01:31]} 46. Nc3 {[%clk 0:02:35.2]}
46... Bc6 {[%clk 0:01:32.4]} 47. h3 {[%clk 0:02:26.8]} 47... gxh3 {[%clk
0:01:31.2]} 48. Kxh3 {[%clk 0:02:28.7]} 48... Bd8 {[%clk 0:01:31.3]} 49. Kg3
{[%clk 0:02:30.1]} 49... Bc7 {[%clk 0:01:31.6]} 50. Ne2 {[%clk 0:02:10.2]} 50...
Bd7 {[%clk 0:01:28.6]} 51. Nc3 {[%clk 0:02:02]} 51... Bc6 {[%clk 0:01:28.8]} 52.
Kh3 {[%clk 0:01:57.5]} 52... Bd7+ {[%clk 0:01:28.1]} 53. Kh2 {[%clk 0:01:58.2]}
53... Bc6 {[%clk 0:01:26.3]} 54. Kg3 {[%clk 0:01:59.4]} 54... Bb8 {[%clk
0:01:15.9]} 55. Ne1 {[%clk 0:01:59.2]} 55... Bc7 {[%clk 0:01:16.8]} 56. Nc2
{[%clk 0:02:00.7]} 56... Bd8 {[%clk 0:01:16.8]} 57. Na3 {[%clk 0:01:58.9]} 57...
Bxh4+ {[%clk 0:01:16.9]} 58. Kg2 {[%clk 0:01:59.6]} 58... Be1 {[%clk 0:01:12.9]}
59. Naxb5 {[%clk 0:02:01]} 59... Kg4 {[%clk 0:01:03.5]} 60. Kf1 {[%clk
0:02:01.8]} 60... Bh4 {[%clk 0:00:37.7]} 61. Ke2 {[%clk 0:01:59.7]} 1-0

[Event "*** Titled Tuesday Blitz"]
[Site "Chess.com"]
[Date "2019.07.02"]
[Round "5"]
[White "TheBigBadChessDad"]
[Black "pr1105"]
[Result "1-0"]
[WhiteElo "2294"]
[BlackElo "2206"]
[TimeControl "180+2"]
[EndTime "14:06:47 PDT"]
[Termination "TheBigBadChessDad won by checkmate"]

1. d4 {[%clk 0:03:01.9]} 1... Nf6 {[%clk 0:02:54.9]} 2. Nf3 {[%clk 0:03:02.7]}
2... e6 {[%clk 0:02:48.4]} 3. Bf4 {[%clk 0:03:02.5]} 3... d5 {[%clk 0:02:48]} 4.
e3 {[%clk 0:03:02.4]} 4... c5 {[%clk 0:02:47.2]} 5. c3 {[%clk 0:03:02.5]} 5...
Nc6 {[%clk 0:02:41.6]} 6. Nbd2 {[%clk 0:03:01.7]} 6... Bd6 {[%clk 0:02:40.7]} 7.
Bg3 {[%clk 0:03:02.6]} 7... O-O {[%clk 0:02:39.8]} 8. Bd3 {[%clk 0:03:03.4]}
8... b6 {[%clk 0:02:34.2]} 9. e4 {[%clk 0:03:04.1]} 9... Be7 {[%clk 0:02:34.4]}
10. e5 {[%clk 0:03:03.3]} 10... Nh5 {[%clk 0:02:34.3]} 11. a3 {[%clk 0:02:57]}
11... a5 {[%clk 0:02:33]} 12. Qe2 {[%clk 0:02:57.4]} 12... c4 {[%clk 0:02:29.1]}
13. Bc2 {[%clk 0:02:56.3]} 13... b5 {[%clk 0:02:30.7]} 14. O-O {[%clk
0:02:37.3]} 14... Ba6 {[%clk 0:02:16.1]} 15. Ne1 {[%clk 0:02:32.6]} 15... g6
{[%clk 0:01:54.6]} 16. f4 {[%clk 0:02:25.3]} 16... Ng7 {[%clk 0:01:22.8]} 17.
Nef3 {[%clk 0:02:17.8]} 17... b4 {[%clk 0:01:23.1]} 18. Ng5 {[%clk 0:01:45.8]}
18... bxc3 {[%clk 0:01:10.5]} 19. bxc3 {[%clk 0:01:46]} 19... Rb8 {[%clk
0:01:08.4]} 20. Ra2 {[%clk 0:01:39.3]} 20... Rb6 {[%clk 0:00:35.7]} 21. Ndf3
{[%clk 0:01:32.4]} 21... Qb8 {[%clk 0:00:18]} 22. Ba4 {[%clk 0:01:32.9]} 22...
Bb5 {[%clk 0:00:16.5]} 23. Bd1 {[%clk 0:01:33.9]} 23... Ba6 {[%clk 0:00:15.6]}
24. Be1 {[%clk 0:01:23.2]} 24... Rb1 {[%clk 0:00:15.8]} 25. g4 {[%clk
0:01:18.3]} 25... Bb5 {[%clk 0:00:14.9]} 26. Rb2 {[%clk 0:01:14.1]} 26... Rxb2
{[%clk 0:00:15.4]} 27. Qxb2 {[%clk 0:01:15.4]} 27... a4 {[%clk 0:00:17.1]} 28.
Rf2 {[%clk 0:01:06.7]} 28... Na5 {[%clk 0:00:18]} 29. Bc2 {[%clk 0:01:03.3]}
29... Nb3 {[%clk 0:00:18.7]} 30. f5 {[%clk 0:01:03.5]} 30... exf5 {[%clk
0:00:15.7]} 31. gxf5 {[%clk 0:01:05.4]} 31... Nxf5 {[%clk 0:00:15.6]} 32. Bxf5
{[%clk 0:01:05.8]} 32... gxf5 {[%clk 0:00:17.5]} 33. Rg2 {[%clk 0:01:04.4]}
33... Kh8 {[%clk 0:00:18.1]} 34. Qf2 {[%clk 0:01:04.6]} 34... Qb6 {[%clk
0:00:10.3]} 35. Qh4 {[%clk 0:01:02.6]} 35... h6 {[%clk 0:00:11.7]} 36. Qh5
{[%clk 0:00:55.7]} 36... Be8 {[%clk 0:00:12.1]} 37. e6 {[%clk 0:00:52.9]} 37...
Bxg5 {[%clk 0:00:04.1]} 38. Nxg5 {[%clk 0:00:54.1]} 38... fxe6 {[%clk
0:00:03.8]} 39. Qxh6+ {[%clk 0:00:55]} 39... Kg8 {[%clk 0:00:04.6]} 40. Qh7#
{[%clk 0:00:55.9]} 1-0

[Event "*** Titled Tuesday Blitz"]
[Site "Chess.com"]
[Date "2019.07.02"]
[Round "5"]
[White "CMS13"]
[Black "JuliaEfremova"]
[Result "0-1"]
[WhiteElo "1983"]
[BlackElo "1966"]
[TimeControl "180+2"]
[EndTime "14:06:55 PDT"]
[Termination "JuliaEfremova won by checkmate"]

1. e4 {[%clk 0:03:01.9]} 1... c6 {[%clk 0:02:54.7]} 2. Nc3 {[%clk 0:03:02.5]}
2... d5 {[%clk 0:02:55.7]} 3. Nf3 {[%clk 0:03:03.3]} 3... dxe4 {[%clk
0:02:56.4]} 4. Nxe4 {[%clk 0:03:04.4]} 4... Nf6 {[%clk 0:02:57.9]} 5. Qe2 {[%clk
0:03:05.1]} 5... Nxe4 {[%clk 0:02:58.3]} 6. Qxe4 {[%clk 0:03:06.3]} 6... Nd7
{[%clk 0:02:59]} 7. Bc4 {[%clk 0:03:05.2]} 7... Nf6 {[%clk 0:02:59.4]} 8. Ne5
{[%clk 0:03:05.9]} 8... e6 {[%clk 0:02:58.6]} 9. Qe2 {[%clk 0:03:06.9]} 9... Bc5
{[%clk 0:02:56]} 10. O-O {[%clk 0:03:05.3]} 10... O-O {[%clk 0:02:55.9]} 11. c3
{[%clk 0:03:05.5]} 11... b5 {[%clk 0:02:56.2]} 12. Bb3 {[%clk 0:03:06]} 12...
Bb7 {[%clk 0:02:56.1]} 13. d4 {[%clk 0:03:07]} 13... Bd6 {[%clk 0:02:56.9]} 14.
Bg5 {[%clk 0:02:39.9]} 14... Be7 {[%clk 0:02:51.3]} 15. Rfe1 {[%clk 0:02:32.3]}
15... Nd5 {[%clk 0:02:50.4]} 16. Bxe7 {[%clk 0:02:30.4]} 16... Nxe7 {[%clk
0:02:50.6]} 17. Nxf7 {[%clk 0:02:25.9]} 17... Rxf7 {[%clk 0:02:47.4]} 18. Qxe6
{[%clk 0:02:20.2]} 18... Nd5 {[%clk 0:02:47.5]} 19. Re5 {[%clk 0:02:07.7]} 19...
Qf6 {[%clk 0:02:41.8]} 20. Rae1 {[%clk 0:01:54.4]} 20... Rf8 {[%clk 0:02:19.4]}
21. f3 {[%clk 0:01:46.8]} 21... Qxe6 {[%clk 0:02:15.7]} 22. Rxe6 {[%clk
0:01:47.9]} 22... g6 {[%clk 0:02:09.6]} 23. a4 {[%clk 0:01:27.9]} 23... bxa4
{[%clk 0:01:59.2]} 24. Bxa4 {[%clk 0:01:29.2]} 24... Kg7 {[%clk 0:01:55.6]} 25.
Bxc6 {[%clk 0:01:25.3]} 25... Nf4 {[%clk 0:01:46.2]} 26. Rd6 {[%clk 0:01:18.7]}
26... Bxc6 {[%clk 0:01:41.1]} 27. Rxc6 {[%clk 0:01:19.9]} 27... h5 {[%clk
0:01:31]} 28. c4 {[%clk 0:01:18.7]} 28... h4 {[%clk 0:01:27.3]} 29. d5 {[%clk
0:01:14.9]} 29... h3 {[%clk 0:01:27.7]} 30. gxh3 {[%clk 0:00:52.4]} 30... Nxh3+
{[%clk 0:01:26]} 31. Kg2 {[%clk 0:00:53.7]} 31... Rxf3 {[%clk 0:01:20.8]} 32.
Re7+ {[%clk 0:00:52.9]} 32... Kh6 {[%clk 0:01:20.2]} 33. Rcc7 {[%clk 0:00:42.8]}
33... Kg5 {[%clk 0:01:16.3]} 34. Re5+ {[%clk 0:00:37]} 34... Kg4 {[%clk
0:01:14.4]} 35. Re4+ {[%clk 0:00:34.5]} 35... R8f4 {[%clk 0:00:58.3]} 36. Rxf4+
{[%clk 0:00:14.9]} 36... Nxf4+ {[%clk 0:00:58.4]} 37. Kg1 {[%clk 0:00:15.5]}
37... Nh3+ {[%clk 0:00:58.7]} 38. Kg2 {[%clk 0:00:15.2]} 38... Rf2+ {[%clk
0:00:57.3]} 39. Kh1 {[%clk 0:00:16.3]} 39... Rf1+ {[%clk 0:00:58.2]} 40. Kg2
{[%clk 0:00:17.8]} 40... Rg1# {[%clk 0:00:59.1]} 0-1

[Event "*** Titled Tuesday Blitz"]
[Site "Chess.com"]
[Date "2019.07.02"]
[Round "5"]
[White "DACF2905"]
[Black "aa175"]
[Result "1/2-1/2"]
[WhiteElo "2235"]
[BlackElo "2269"]
[TimeControl "180+2"]
[EndTime "14:06:58 PDT"]
[Termination "Game drawn by repetition"]

1. e4 {[%clk 0:03:01.9]} 1... e5 {[%clk 0:02:55.4]} 2. Nf3 {[%clk 0:02:59.5]}
2... f5 {[%clk 0:02:55.6]} 3. d4 {[%clk 0:02:48]} 3... exd4 {[%clk 0:02:47.1]}
4. exf5 {[%clk 0:02:43.1]} 4... Nc6 {[%clk 0:02:39.3]} 5. Nxd4 {[%clk
0:02:39.9]} 5... Nxd4 {[%clk 0:02:40.4]} 6. Qxd4 {[%clk 0:02:39.5]} 6... Nf6
{[%clk 0:02:36.4]} 7. Nc3 {[%clk 0:02:39.7]} 7... Be7 {[%clk 0:02:34.5]} 8. Bc4
{[%clk 0:02:39.3]} 8... c6 {[%clk 0:02:31.7]} 9. O-O {[%clk 0:02:27.4]} 9... d5
{[%clk 0:02:31.3]} 10. Bd3 {[%clk 0:02:27.3]} 10... O-O {[%clk 0:02:32.1]} 11.
Bg5 {[%clk 0:02:27.2]} 11... Qb6 {[%clk 0:02:28.1]} 12. Qxb6 {[%clk 0:02:26.7]}
12... axb6 {[%clk 0:02:30]} 13. a3 {[%clk 0:02:22.6]} 13... h6 {[%clk
0:02:14.8]} 14. Bh4 {[%clk 0:02:16.9]} 14... Bd7 {[%clk 0:02:11.9]} 15. Rfe1
{[%clk 0:02:15.2]} 15... Bc5 {[%clk 0:02:11]} 16. h3 {[%clk 0:02:08.9]} 16...
Rae8 {[%clk 0:02:09.1]} 17. Kf1 {[%clk 0:02:07.9]} 17... Bd4 {[%clk 0:01:57.1]}
18. Rxe8 {[%clk 0:01:48.2]} 18... Rxe8 {[%clk 0:01:57.1]} 19. Re1 {[%clk
0:01:45.4]} 19... Rxe1+ {[%clk 0:01:43.3]} 20. Kxe1 {[%clk 0:01:45.6]} 20... Kf7
{[%clk 0:01:36.4]} 21. Nd1 {[%clk 0:01:39]} 21... c5 {[%clk 0:01:18.3]} 22. c4
{[%clk 0:01:31.4]} 22... Ba4 {[%clk 0:01:12.9]} 23. b4 {[%clk 0:01:22.3]} 23...
Bxd1 {[%clk 0:01:04.8]} 24. Kxd1 {[%clk 0:01:22.3]} 24... Ke8 {[%clk 0:00:50.8]}
25. Bxf6 {[%clk 0:01:21.6]} 25... gxf6 {[%clk 0:00:52.7]} 26. cxd5 {[%clk
0:01:21.9]} 26... Bxf2 {[%clk 0:00:53.6]} 27. Kc2 {[%clk 0:01:07]} 27... Ke7
{[%clk 0:00:51]} 28. g4 {[%clk 0:01:06.1]} 28... Kd6 {[%clk 0:00:50.8]} 29. Bc4
{[%clk 0:01:06.6]} 29... Be1 {[%clk 0:00:46.6]} 30. Kb3 {[%clk 0:01:02.4]} 30...
cxb4 {[%clk 0:00:39]} 31. axb4 {[%clk 0:01:02.8]} 31... b5 {[%clk 0:00:40.5]}
32. Bxb5 {[%clk 0:01:03.3]} 32... Kxd5 {[%clk 0:00:42.4]} 33. Be8 {[%clk
0:00:58.2]} 33... Ke5 {[%clk 0:00:29.9]} 34. Kc4 {[%clk 0:00:58.6]} 34... b6
{[%clk 0:00:25.7]} 35. Kb5 {[%clk 0:00:51.7]} 35... Kf4 {[%clk 0:00:19.8]} 36.
Kxb6 {[%clk 0:00:52.1]} 36... Bxb4 {[%clk 0:00:20.6]} 37. Kc6 {[%clk 0:00:52.8]}
37... Kg3 {[%clk 0:00:20.9]} 38. Bh5 {[%clk 0:00:53.5]} 38... Kxh3 {[%clk
0:00:21.1]} 39. Kd5 {[%clk 0:00:55.4]} 39... Bd2 {[%clk 0:00:22]} 40. Ke6 {[%clk
0:00:54.5]} 40... Bg5 {[%clk 0:00:23.9]} 41. Kf7 {[%clk 0:00:55.7]} 41... Kg3
{[%clk 0:00:25.8]} 42. Kg6 {[%clk 0:00:57.4]} 42... Kf4 {[%clk 0:00:27.5]} 43.
Kf7 {[%clk 0:00:57.7]} 43... Ke5 {[%clk 0:00:29.4]} 44. Ke7 {[%clk 0:00:58.2]}
44... Bf4 {[%clk 0:00:29.1]} 45. Kf7 {[%clk 0:00:58.3]} 45... Bg5 {[%clk
0:00:31]} 46. Kg6 {[%clk 0:00:59.1]} 46... Kd4 {[%clk 0:00:32.9]} 47. Kf7 {[%clk
0:00:59.6]} 47... Kc5 {[%clk 0:00:34.8]} 48. Ke6 {[%clk 0:01:00.7]} 48... Kb4
{[%clk 0:00:36.7]} 49. Kd5 {[%clk 0:01:01.9]} 49... Kc3 {[%clk 0:00:38.6]} 50.
Ke4 {[%clk 0:01:02.8]} 50... Kb2 {[%clk 0:00:40.5]} 51. Kf3 {[%clk 0:01:03.8]}
51... Ka3 {[%clk 0:00:42.4]} 52. Bf7 {[%clk 0:01:04.5]} 52... Kb2 {[%clk
0:00:44.3]} 53. Be6 {[%clk 0:01:06.1]} 53... Ka1 {[%clk 0:00:46.2]} 54. Ke4
{[%clk 0:01:07.4]} 54... Kb2 {[%clk 0:00:48.1]} 55. Bf7 {[%clk 0:01:08.9]} 55...
Ka3 {[%clk 0:00:50]} 56. Bh5 {[%clk 0:01:10.5]} 56... Kb4 {[%clk 0:00:51.9]} 57.
Kd5 {[%clk 0:01:11.4]} 57... Ka5 {[%clk 0:00:53.8]} 58. Kc6 {[%clk 0:01:12.5]}
58... Kb4 {[%clk 0:00:54.5]} 59. Kd5 {[%clk 0:01:13.4]} 1/2-1/2

[Event "*** Titled Tuesday Blitz"]
[Site "Chess.com"]
[Date "2019.07.02"]
[Round "5"]
[White "lavr92"]
[Black "LucaBrasi1968"]
[Result "0-1"]
[WhiteElo "2594"]
[BlackElo "2442"]
[TimeControl "180+2"]
[EndTime "14:06:58 PDT"]
[Termination "LucaBrasi1968 won by checkmate"]

1. d4 {[%clk 0:03:00.9]} 1... f5 {[%clk 0:02:49.2]} 2. Bg5 {[%clk 0:02:59.3]}
2... g6 {[%clk 0:02:49.9]} 3. Nc3 {[%clk 0:02:53.7]} 3... d5 {[%clk 0:02:50.5]}
4. h4 {[%clk 0:02:49]} 4... Bg7 {[%clk 0:02:50.8]} 5. Qd3 {[%clk 0:02:49.4]}
5... c6 {[%clk 0:02:49.6]} 6. O-O-O {[%clk 0:02:46.4]} 6... Be6 {[%clk
0:02:50.4]} 7. Qg3 {[%clk 0:02:44.5]} 7... Nd7 {[%clk 0:02:30.3]} 8. Nf3 {[%clk
0:02:20]} 8... Ngf6 {[%clk 0:02:30.2]} 9. Ne5 {[%clk 0:02:18.7]} 9... Nxe5
{[%clk 0:02:26.2]} 10. dxe5 {[%clk 0:02:18.2]} 10... Nd7 {[%clk 0:02:08.9]} 11.
Bf4 {[%clk 0:02:18.4]} 11... Qc7 {[%clk 0:02:05.5]} 12. h5 {[%clk 0:02:10.2]}
12... Bxe5 {[%clk 0:02:06.4]} 13. Bxe5 {[%clk 0:02:06.9]} 13... Qxe5 {[%clk
0:02:06.7]} 14. f4 {[%clk 0:02:06.3]} 14... Qg7 {[%clk 0:01:55.4]} 15. hxg6
{[%clk 0:02:05.1]} 15... O-O-O {[%clk 0:01:56.3]} 16. Qe3 {[%clk 0:02:04.1]}
16... Qf6 {[%clk 0:00:51.1]} 17. Qxa7 {[%clk 0:01:46.8]} 17... hxg6 {[%clk
0:00:50]} 18. Rxh8 {[%clk 0:01:48.2]} 18... Rxh8 {[%clk 0:00:50.4]} 19. e3
{[%clk 0:01:45]} 19... Bf7 {[%clk 0:00:46.8]} 20. Be2 {[%clk 0:01:20.1]} 20...
Qd6 {[%clk 0:00:47.1]} 21. Rd4 {[%clk 0:01:21.1]} 21... Qb8 {[%clk 0:00:35.6]}
22. Qa3 {[%clk 0:01:17.6]} 22... Qd6 {[%clk 0:00:36.6]} 23. Rb4 {[%clk
0:01:16.3]} 23... Nb8 {[%clk 0:00:15.2]} 24. Na4 {[%clk 0:01:04.3]} 24... Rh1+
{[%clk 0:00:10.4]} 25. Kd2 {[%clk 0:01:04]} 25... Rh2 {[%clk 0:00:12.3]} 26. Qb3
{[%clk 0:00:37.7]} 26... d4 {[%clk 0:00:11.6]} 27. Nb6+ {[%clk 0:00:16.9]} 27...
Kc7 {[%clk 0:00:09.7]} 28. Na8+ {[%clk 0:00:14.9]} 28... Kc8 {[%clk 0:00:10.6]}
29. Qa4 {[%clk 0:00:11.2]} 29... dxe3+ {[%clk 0:00:09.2]} 30. Kxe3 {[%clk
0:00:12.3]} 30... Rxg2 {[%clk 0:00:05.9]} 31. Bf3 {[%clk 0:00:11.7]} 31... Qd2#
{[%clk 0:00:05.4]} 0-1

[Event "*** Titled Tuesday Blitz"]
[Site "Chess.com"]
[Date "2019.07.02"]
[Round "5"]
[White "PotapovaM"]
[Black "Margency"]
[Result "1-0"]
[WhiteElo "2512"]
[BlackElo "2619"]
[TimeControl "180+2"]
[EndTime "14:07:09 PDT"]
[Termination "PotapovaM won by resignation"]

1. d4 {[%clk 0:03:01.9]} 1... Nf6 {[%clk 0:03:00.3]} 2. c4 {[%clk 0:02:59.1]}
2... g6 {[%clk 0:03:01.4]} 3. Nc3 {[%clk 0:02:58.7]} 3... Bg7 {[%clk 0:03:01.7]}
4. e4 {[%clk 0:02:59.5]} 4... d6 {[%clk 0:03:03]} 5. h3 {[%clk 0:02:53.9]} 5...
O-O {[%clk 0:03:02.8]} 6. Be3 {[%clk 0:02:54]} 6... e5 {[%clk 0:03:03.1]} 7. d5
{[%clk 0:02:54.8]} 7... a5 {[%clk 0:03:02.4]} 8. c5 {[%clk 0:02:53.3]} 8... Na6
{[%clk 0:02:55.9]} 9. cxd6 {[%clk 0:02:47.9]} 9... cxd6 {[%clk 0:02:56.8]} 10.
Nf3 {[%clk 0:02:36.6]} 10... Bd7 {[%clk 0:02:50.3]} 11. Be2 {[%clk 0:02:35.2]}
11... Nh5 {[%clk 0:02:46.2]} 12. g3 {[%clk 0:02:24]} 12... f5 {[%clk 0:02:34.4]}
13. exf5 {[%clk 0:02:18]} 13... gxf5 {[%clk 0:02:35]} 14. Ng5 {[%clk 0:02:17.4]}
14... f4 {[%clk 0:02:32]} 15. Bxh5 {[%clk 0:02:03.5]} 15... fxe3 {[%clk
0:02:32.5]} 16. Nce4 {[%clk 0:02:01.8]} 16... exf2+ {[%clk 0:02:27.7]} 17. Kf1
{[%clk 0:02:02.9]} 17... Qb6 {[%clk 0:02:02.8]} 18. Kg2 {[%clk 0:01:31.5]} 18...
Qxb2 {[%clk 0:01:53.4]} 19. Rf1 {[%clk 0:01:31]} 19... Bb5 {[%clk 0:01:37.6]}
20. Qg4 {[%clk 0:01:20.5]} 20... Nc7 {[%clk 0:01:01.2]} 21. Nxh7 {[%clk
0:00:25.5]} 21... Kxh7 {[%clk 0:00:36]} 22. Bg6+ {[%clk 0:00:25.6]} 22... Kg8
{[%clk 0:00:34.8]} 23. Qh5 {[%clk 0:00:26.9]} 23... Rf6 {[%clk 0:00:21.5]} 24.
Nxf6+ {[%clk 0:00:25.2]} 24... Kf8 {[%clk 0:00:22.7]} 25. Ne4 {[%clk 0:00:18.8]}
25... Bxf1+ {[%clk 0:00:17.3]} 26. Rxf1 {[%clk 0:00:18.6]} 26... Ke7 {[%clk
0:00:18.2]} 27. Rxf2 {[%clk 0:00:19.4]} 27... Qd4 {[%clk 0:00:16.6]} 28. Qh4+
{[%clk 0:00:14.1]} 28... Kd7 {[%clk 0:00:15.1]} 29. Bf5+ {[%clk 0:00:12.9]}
29... Ke8 {[%clk 0:00:14.9]} 30. Nxd6+ {[%clk 0:00:09.6]} 30... Kf8 {[%clk
0:00:15.8]} 31. Be6+ {[%clk 0:00:10]} 31... Qxf2+ {[%clk 0:00:13.9]} 32. Kxf2
{[%clk 0:00:11.1]} 32... Ra6 {[%clk 0:00:14.5]} 33. Qd8+ {[%clk 0:00:11]} 1-0